bitfinex-derivatives/quotes_ETHF0:USTF0_20250317
["timestamp","ask_amount","ask_price","bid_price","bid_amount"]
[1742171111236,3.55083,1892.3,1892.2,1.3286]
[1742171111844,3.55083,1892.3,1892.2,2.17424]
[1742171112344,6.75863,1892.3,1892.2,1.3286]
[1742171112942,6.75863,1892.3,1892.2,2.17424]
[1742171113745,6.75863,1892.3,1892.2,1.3286]
[1742171115142,0.84564,1892.2,1892.1,0.85362176]
[1742171115341,2.27994,1892.2,1892.1,0.85362176]
[1742171115747,5.71994,1892.2,1892.1,0.00794176]
[1742171116141,5.71994,1892.2,1892.1,0.85362176]
[1742171116350,5.71994,1892.2,1892.1,2.18612176]
[1742171117245,5.71994,1892.2,1892.1,1.34044176]
[1742171117847,5.71994,1892.2,1892.1,2.18612176]
[1742171118150,5.71994,1892.2,1892.1,1.34044176]
[1742171119053,5.71994,1892.2,1892.1,2.18612176]
[1742171119247,5.71994,1892.2,1892.1,1.34044176]
[1742171120350,5.71994,1892.2,1892.1,2.18612176]
[1742171120650,8.92774,1892.2,1892.1,1.34044176]
[1742171121955,8.92774,1892.2,1892.1,0.00794176]
[1742171124440,11.42774,1892.2,1891.8,6.0]
[1742171124646,0.84577,1891.9,1891.8,1.3171]
[1742171124846,4.28577,1891.9,1891.8,1.3171]
[1742171125541,6.37627,1891.9,1891.8,1.3171]
[1742171125743,6.37627,1891.9,1891.8,2.16292]
[1742171126454,6.37627,1891.9,1891.8,1.3171]
[1742171127164,3.2078,1892.1,1892.0,0.84573]
[1742171127451,0.84568,1892.2,1892.1,0.84568]
[1742171127750,8.0302,1892.3,1892.1,0.84568]
[1742171127956,7.49343,1892.3,1892.2,2.20534]
[1742171128154,3.2078,1892.3,1892.2,2.20534]
[1742171130860,4.05339,1892.3,1892.2,2.20534]
[1742171131054,4.76769,1892.3,1892.2,2.20534]
[1742171131554,4.76769,1892.3,1892.2,1.3597]
[1742171131950,8.20769,1892.3,1892.2,1.3597]
[1742171132156,8.20769,1892.3,1892.2,2.20534]
[1742171133161,8.20769,1892.3,1892.2,1.3597]
[1742171133755,4.99989,1892.3,1892.2,2.20534]
[1742171134960,3.21574176,1892.5,1892.4,0.84555]
[1742171135153,4.29348176,1892.5,1892.4,0.84555]
[1742171135458,0.84555,1892.4,1892.3,2.7517]
[1742171135654,0.84555,1892.4,1892.3,0.7037]
[1742171135960,0.84555,1892.4,1892.3,1.54929]
[1742171136453,0.84564,1892.2,1892.1,1.54985]
[1742171136658,0.84564,1892.2,1892.1,1.50275]
[1742171137355,0.84573,1892.0,1891.9,0.84574]
[1742171137560,1.52852,1892.1,1892.0,0.84573]
[1742171137760,0.84572,1892.1,1892.0,0.84573]
[1742171137962,4.28566,1892.2,1892.1,0.84568]
[1742171138164,3.44,1892.2,1891.8,9.8649]
[1742171138462,4.28566,1892.2,1892.1,0.84568]
[1742171138659,3.44,1892.2,1892.1,0.84568]
[1742171138860,4.28564,1892.2,1892.1,0.84568]
[1742171139059,3.44,1892.2,1892.1,0.84568]
[1742171139258,4.28564,1892.2,1892.1,0.84568]
[1742171139952,3.44,1892.2,1892.1,0.84568]
[1742171140665,0.6896,1892.3,1892.2,0.84564]
[1742171140962,1.53521,1892.3,1892.2,0.84564]
[1742171141355,5.67539,1892.4,1892.3,0.84559]
[1742171142761,5.67539,1892.4,1892.1,1.3857]
[1742171142762,4.8298,1892.4,1892.1,1.3857]
[1742171142958,2.22099,1892.3,1892.2,0.84562]
[1742171143161,1.3754,1892.3,1892.2,0.84562]
[1742171143761,2.22099,1892.3,1892.2,0.84562]
[1742171144459,1.3754,1892.3,1892.2,0.84562]
[1742171145365,4.28557,1892.4,1892.3,0.84559]
[1742171145565,5.73337,1892.4,1892.3,0.84559]
[1742171145764,0.84557,1892.4,1892.3,0.84559]
[1742171145959,9.63816176,1892.5,1892.4,0.84555]
[1742171146160,5.58484176,1892.5,1892.4,0.84555]
[1742171146467,0.00794176,1892.5,1892.4,0.84555]
[1742171147761,0.85345176,1892.5,1892.4,0.84555]
[1742171147957,2.30125176,1892.5,1892.4,0.84555]
[1742171148368,0.84557,1892.4,1892.3,0.84556]
[1742171148665,2.97047,1892.4,1892.3,0.84556]
[1742171152170,2.1249,1892.4,1892.3,0.84556]
[1742171153068,1.4287,1892.4,1892.3,0.84556]
[1742171153369,1.4287,1892.4,1892.2,1.3469]
[1742171153370,0.00794176,1892.5,1892.4,0.84555]
[1742171153570,0.85345176,1892.5,1892.4,0.84555]
[1742171153769,0.85345176,1892.5,1892.4,1.50245]
[1742171153964,2.17625176,1892.5,1892.4,1.50245]
[1742171157164,1.33074176,1892.5,1892.4,1.50245]
[1742171157669,2.17625176,1892.5,1892.4,1.50245]
[1742171159665,2.17628176,1892.5,1892.4,0.84555]
[1742171160173,0.84555,1892.4,1892.3,1.425]
[1742171160365,0.84555,1892.4,1892.1,6.6906]
[1742171160366,0.84564,1892.2,1892.1,6.0]
[1742171160565,0.84564,1892.2,1892.1,8.18008]
[1742171160957,2.26484,1892.2,1892.1,8.18008]
[1742171161369,2.26484,1892.2,1892.1,1.3344]
[1742171161562,2.26484,1892.2,1891.8,0.7134]
[1742171161563,6.74117,1892.2,1891.8,0.7134]
[1742171161759,0.84582,1891.8,1891.7,0.85380176]
[1742171162572,0.6657,1891.9,1891.8,0.84582]
[1742171162773,0.6657,1891.9,1891.8,1.55922]
[1742171162970,2.0849,1891.9,1891.8,2.89362]
[1742171163177,2.93067,1891.9,1891.8,2.89362]
[1742171163363,3.44,1892.0,1891.9,0.84577]
[1742171163569,3.44,1892.0,1891.9,2.18017]
[1742171163968,4.28568,1892.2,1891.9,1.3344]
[1742171164169,5.65338,1892.2,1892.1,0.84568]
[1742171164367,0.84568,1892.1,1892.0,2.23599]
[1742171164571,1.3677,1892.1,1892.0,2.23599]
[1742171164775,4.28565,1892.2,1892.1,0.84568]
[1742171165076,3.44,1892.2,1892.1,2.95678]
[1742171165576,5.65334,1892.2,1892.1,2.1111]
[1742171165767,8.86114,1892.2,1892.1,2.1111]
[1742171165970,5.65334,1892.2,1892.1,2.1111]
[1742171166370,5.65334,1892.2,1892.1,2.95678]
[1742171167871,8.86114,1892.2,1892.1,2.95678]
[1742171168078,5.65334,1892.2,1892.1,2.1111]
[1742171168279,8.86114,1892.2,1892.1,1.3903]
[1742171169174,0.84575,1892.0,1891.9,0.84574]
[1742171169482,1.4261,1892.1,1892.0,0.84573]
[1742171169882,8.0185,1892.2,1892.1,0.84568]
[1742171170074,4.8107,1892.2,1892.1,0.84568]
[1742171170271,3.2078,1892.4,1892.0,9.56687]
[1742171170473,3.2078,1892.4,1892.3,0.84559]
[1742171171379,3.2078,1892.4,1892.3,2.29819]
[1742171171878,2.22415176,1892.5,1892.4,0.84555]
[1742171172080,0.84539,1892.8,1892.7,0.84539]
[1742171172273,6.35389,1892.8,1892.7,0.84539]
[1742171172469,0.84543,1892.7,1892.6,0.84542]
[1742171172782,2.21612,1892.7,1892.6,0.84542]
[1742171173680,4.14574176,1892.8,1892.7,0.84542]
[1742171174079,5.46674176,1892.8,1892.7,0.84542]
[1742171174280,5.46674176,1892.8,1892.7,1.55062]
[1742171174475,6.31211176,1892.8,1892.7,1.3236]
[1742171174778,2.87211176,1892.8,1892.7,1.3236]
[1742171174984,0.84542,1892.7,1892.6,0.84542]
[1742171175177,0.84546,1892.6,1892.5,2.16906]
[1742171175486,4.77236,1892.6,1892.5,1.3236]
[1742171175680,8.21236,1892.6,1892.5,2.16911]
[1742171175877,0.84551,1892.5,1892.4,0.84552]
[1742171176078,2.21451,1892.5,1892.4,0.84552]
[1742171176280,2.21451,1892.5,1892.4,2.20032]
[1742171178178,1.369,1892.5,1892.4,2.20032]
[1742171178375,2.21451,1892.5,1892.4,2.20032]
[1742171179488,2.21451,1892.5,1892.4,1.3548]
[1742171179986,2.21451,1892.5,1892.4,2.20035]
[1742171181490,2.21451,1892.5,1892.4,1.3548]
[1742171181691,2.21451,1892.5,1892.4,2.20035]
[1742171183494,4.05326,1892.6,1892.5,0.84551]
[1742171183794,7.49226,1892.6,1892.5,2.90441]
[1742171185979,6.6468,1892.6,1892.5,2.90441]
[1742171186582,3.2078,1892.6,1892.5,2.90441]
[1742171187485,0.70574176,1892.8,1892.7,0.84542]
[1742171187689,0.00794176,1892.8,1892.7,0.84542]
[1742171187890,0.00794176,1892.8,1892.7,2.24362]
[1742171190397,0.00794176,1892.8,1892.7,5.45142]
[1742171190600,3.53823,1893.2,1893.1,0.84524]
[1742171190799,6.97723,1893.2,1893.1,0.84524]
[1742171191792,5.471,1893.2,1893.1,0.84524]
[1742171192002,8.6788,1893.2,1893.0,1.38854176]
[1742171192202,2.29824,1893.1,1893.0,1.38854176]
[1742171192412,3.01934,1893.1,1893.0,1.38854176]
[1742171192709,3.01934,1893.1,1893.0,0.00794176]
[1742171192909,3.01934,1893.1,1892.5,0.84547]
[1742171192910,0.84549,1892.6,1892.5,0.84547]
[1742171193101,0.84549,1892.6,1892.5,2.20017]
[1742171194011,0.84555,1892.4,1892.3,0.84558]
[1742171194603,1.3737,1892.4,1892.3,0.84558]
[1742171194809,2.21925,1892.4,1892.3,0.84558]
[1742171195009,1.3737,1892.4,1892.3,0.84558]
[1742171195610,2.21925,1892.4,1892.3,0.84558]
[1742171196111,1.3737,1892.4,1892.3,0.84558]
[1742171196310,2.21925,1892.4,1892.3,0.84558]
[1742171197813,4.94444,1892.5,1892.4,0.84555]
[1742171198016,6.31694,1892.5,1892.4,0.84555]
[1742171199010,6.31691,1892.5,1892.4,0.84555]
[1742171199215,5.4714,1892.5,1892.4,1.54755]
[1742171199514,3.2078,1892.6,1892.5,0.84551]
[1742171199714,0.85337176,1892.7,1892.6,0.84546]
[1742171199924,1.38044176,1892.7,1892.6,0.84546]
[1742171200104,0.00794176,1892.7,1892.6,2.22256]
[1742171204322,0.00794176,1892.7,1892.6,2.22256]
[1742171210112,1.36644176,1892.7,1892.6,2.22256]
[1742171210312,0.00794176,1892.7,1892.6,2.22256]
[1742171213325,2.27727,1893.1,1893.0,0.84528]
[1742171214721,3.65897,1893.1,1893.0,0.84528]
[1742171216315,2.8137,1893.1,1892.8,1.4087]
[1742171216514,0.84538,1892.8,1892.7,0.84542]
[1742171216715,4.28336,1892.9,1892.8,0.84537]
[1742171217526,0.8454,1892.8,1892.7,0.8454]
[1742171217729,0.84542,1892.7,1892.6,1.4077]
[1742171217924,0.84545,1892.7,1892.6,0.84544]
[1742171218126,0.84545,1892.7,1892.6,2.25314]
[1742171220524,1.51621,1892.8,1892.7,0.84542]
[1742171220726,1.51621,1892.8,1892.7,2.20202]
[1742171221526,1.51621,1892.8,1892.7,1.3566]
[1742171221724,4.95421,1892.8,1892.7,2.20202]
[1742171221917,0.84546,1892.6,1892.5,4.05327]
[1742171222117,0.84546,1892.6,1892.5,5.36797]
[1742171223142,0.84545,1892.7,1892.6,0.84544]
[1742171223324,0.84545,1892.7,1892.6,2.16014]
[1742171224625,0.84534,1892.9,1892.8,0.84537]
[1742171224830,4.28334,1892.9,1892.8,0.84537]
[1742171225030,3.438,1892.9,1892.8,0.84537]
[1742171225232,4.73872,1893.0,1892.9,0.84533]
[1742171225233,8.17672,1893.0,1892.9,0.84533]
[1742171225830,8.17668,1893.0,1892.9,0.84533]
[1742171226628,7.3314,1893.0,1892.9,0.84533]
[1742171226826,8.17668,1893.0,1892.9,0.84533]
[1742171228330,8.0228,1893.0,1892.9,0.84533]
[1742171228723,4.5848,1893.0,1892.9,0.84533]
[1742171228924,5.43008,1893.0,1892.9,0.84533]
[1742171229233,0.84545,1892.7,1892.6,0.84544]
[1742171229532,0.84542,1892.7,1892.6,2.24961]
[1742171230134,0.84541,1892.8,1892.7,0.8454]
[1742171230323,0.84541,1892.8,1892.7,2.2496]
[1742171230524,4.28341,1892.8,1892.7,2.2496]
[1742171232025,4.28341,1892.8,1892.7,1.4042]
[1742171232232,0.84542,1892.7,1892.6,2.25273]
[1742171232430,2.0853,1892.7,1892.6,2.25273]
[1742171233332,3.438,1892.8,1892.7,0.84542]
[1742171233533,3.438,1892.8,1892.7,2.25272]
[1742171234132,4.8344,1892.8,1892.7,2.25272]
[1742171236531,5.67977,1892.8,1892.7,2.25272]
[1742171236723,0.84544,1892.7,1892.5,3.2078]
[1742171236925,1.56944,1892.7,1892.6,2.17733]
[1742171237125,1.56944,1892.7,1892.6,1.3319]
[1742171237435,0.84546,1892.6,1892.5,0.84547]
[1742171237625,0.84546,1892.6,1892.5,2.17737]
[1742171237933,0.84546,1892.6,1892.5,1.3319]
[1742171238232,0.84551,1892.5,1892.4,8.17745]
[1742171238432,4.05331,1892.5,1892.4,1.3319]
[1742171238734,7.49131,1892.5,1892.4,2.17745]
[1742171239132,0.84559,1892.3,1892.2,0.00794176]
[1742171239331,0.84577,1891.9,1891.8,3.8961]
[1742171239522,4.28377,1891.9,1891.8,1.3319]
[1742171239829,4.28377,1891.9,1891.8,2.17772]
[1742171240033,4.1386,1891.9,1891.8,2.17772]
[1742171240237,3.438,1891.9,1891.8,2.17772]
[1742171241133,3.438,1892.1,1892.0,0.84573]
[1742171241333,0.84573,1892.0,1891.9,2.20414]
[1742171241538,4.98431,1892.1,1892.0,0.84573]
[1742171241837,4.98431,1892.1,1892.0,2.20413]
[1742171243139,4.98431,1892.1,1892.0,1.3584]
[1742171244941,0.84582,1891.9,1891.8,0.8458]
[1742171245144,0.84582,1891.9,1891.8,2.2636]
[1742171246034,3.2078,1892.0,1891.9,0.84577]
[1742171246231,3.438,1892.1,1892.0,0.84573]
[1742171246438,4.28368,1892.1,1892.0,0.84573]
[1742171246633,4.28368,1892.1,1892.0,2.22743]
[1742171246846,3.438,1892.1,1892.0,2.22743]
[1742171248145,4.28368,1892.1,1892.0,2.22743]
[1742171249642,3.438,1892.1,1892.0,2.22743]
[1742171250043,0.7109,1892.3,1892.2,0.84564]
[1742171250740,7.50033176,1892.4,1892.3,0.84559]
[1742171250940,7.50033176,1892.4,1892.3,2.22049]
[1742171251145,7.50033176,1892.4,1892.3,1.3749]
[1742171251341,8.03524176,1892.4,1892.0,1.52009]
[1742171251546,0.84568,1892.2,1892.1,1.3749]
[1742171251743,0.84568,1892.2,1892.1,2.22058]
[1742171251938,2.22612,1892.3,1892.2,0.84564]
[1742171252137,2.22612,1892.3,1892.2,2.28574]
[1742171252435,5.66512,1892.3,1892.2,2.28574]
[1742171255553,4.8195,1892.3,1892.2,2.28574]
[1742171255753,5.66509,1892.3,1892.2,2.28574]
[1742171257853,3.439,1892.3,1892.2,2.28574]
[1742171258352,4.28459,1892.3,1892.2,2.28574]
[1742171258855,3.439,1892.3,1892.2,2.28574]
[1742171259352,4.28459,1892.3,1892.2,2.28574]
[1742171259659,0.84559,1892.3,1892.2,2.28574]
[1742171260043,4.89534176,1892.4,1892.3,0.84559]
[1742171260044,5.74092176,1892.4,1892.3,0.84559]
[1742171260242,4.29252176,1892.4,1892.3,2.20649]
[1742171261148,4.29252176,1892.4,1892.3,1.3609]
[1742171261557,4.29252176,1892.4,1892.3,2.20649]
[1742171261758,8.76870176,1892.4,1892.0,3.2078]
[1742171261950,4.05344,1892.2,1892.1,1.4491]
[1742171262150,4.05344,1892.2,1892.1,2.29478]
[1742171262352,5.40794,1892.2,1892.1,2.29478]
[1742171263451,3.894,1892.2,1892.1,2.29478]
[1742171263650,0.6862,1892.2,1892.1,2.29478]
[1742171263859,1.53184,1892.2,1892.1,2.29478]
[1742171264253,4.96082176,1892.4,1892.3,0.84559]
[1742171264556,5.64702176,1892.4,1892.3,0.84559]
[1742171264759,0.00794176,1892.4,1892.3,0.84559]
[1742171264949,3.2078,1892.5,1892.4,0.84555]
[1742171265547,5.32104,1893.0,1892.4,0.84555]
[1742171265753,4.1635,1892.9,1892.8,0.84537]
[1742171266049,5.00885,1892.9,1892.8,0.84537]
[1742171266248,0.7245,1892.9,1892.8,0.84537]
[1742171266458,5.87,1893.1,1893.0,0.84528]
[1742171266658,10.15424,1893.1,1893.0,0.84528]
[1742171267660,6.71524,1893.1,1893.0,0.84528]
[1742171267860,0.84528,1893.0,1892.9,1.3737]
[1742171268452,4.74208,1893.0,1892.9,1.3737]
[1742171270456,4.74208,1893.0,1892.9,2.21903]
[1742171270666,6.11588,1893.0,1892.9,2.21903]
[1742171271562,6.11588,1893.0,1892.9,1.3737]
[1742171272569,6.11588,1893.0,1892.9,2.21903]
[1742171272870,3.2078,1893.0,1892.9,2.21903]
[1742171273062,7.49108,1893.0,1892.9,2.21903]
[1742171273263,8.87568,1893.0,1892.9,2.21903]
[1742171273460,5.66788,1893.0,1892.9,2.21903]
[1742171273860,4.8226,1893.0,1892.9,2.21903]
[1742171274055,10.64753,1893.2,1893.1,0.84524]
[1742171274266,14.08553,1893.2,1893.1,0.84524]
[1742171275066,0.84524,1893.1,1893.0,1.51196]
[1742171275262,1.3846,1893.1,1893.0,1.51196]
[1742171275471,14.08552,1893.2,1893.1,0.84524]
[1742171276369,14.08552,1893.2,1893.1,2.15914]
[1742171276569,8.21552,1893.2,1893.1,2.15914]
[1742171276772,3.2078,1893.2,1893.1,2.15914]
[1742171276962,3.2078,1893.2,1893.1,2.86214]
[1742171277763,3.438,1893.4,1893.1,1.3139]
[1742171277976,0.84517,1893.3,1893.2,1.3139]
[1742171278377,4.05297,1893.3,1893.2,1.3139]
[1742171278880,4.05297,1893.3,1893.2,2.15909]
[1742171279084,5.36707,1893.3,1893.2,2.15909]
[1742171280385,4.05297,1893.3,1893.2,2.15909]
[1742171280679,5.43157,1893.3,1893.2,1.3139]
[1742171282586,5.43157,1893.3,1893.2,2.15909]
[1742171282880,5.43157,1893.3,1893.2,1.3139]
[1742171283987,4.28313,1893.4,1893.3,0.84515]
[1742171284187,5.69563,1893.4,1893.3,1.55845]
[1742171284588,7.3499,1893.5,1893.4,0.8451]
[1742171284786,8.7624,1893.5,1893.4,0.8451]
[1742171285090,8.7624,1893.5,1893.4,2.1957]
[1742171285287,9.60746,1893.5,1893.4,2.1957]
[1742171285889,3.2078,1893.5,1893.4,2.1957]
[1742171286284,4.5466,1893.5,1893.4,2.1957]
[1742171286690,3.2078,1893.5,1893.4,2.1957]
[1742171287583,4.5466,1893.5,1893.4,2.1957]
[1742171288192,3.2078,1893.5,1893.4,2.1957]
[1742171288588,0.84506,1893.5,1893.4,2.1957]
[1742171288785,2.25466,1893.5,1893.4,2.1957]
[1742171290383,1.4096,1893.5,1893.4,2.1957]
[1742171290592,2.25466,1893.5,1893.4,2.1957]
[1742171290897,1.4096,1893.5,1893.4,2.1957]
[1742171292098,4.0528,1893.7,1893.4,1.3506]
[1742171292288,7.4898,1893.7,1893.6,0.84501]
[1742171292593,5.4613,1893.7,1893.6,0.84501]
[1742171292787,1.53723,1893.8,1893.7,0.84497]
[1742171292988,0.84497,1893.7,1893.6,1.51918]
[1742171293191,6.38275,1893.8,1893.7,0.84497]
[1742171293695,6.38275,1893.8,1893.7,2.20267]
[1742171294798,6.38272,1893.8,1893.7,2.20267]
[1742171297290,2.1008,1893.8,1893.7,2.20267]
[1742171297498,1.4085,1893.8,1893.7,2.20267]
[1742171297701,2.25342,1893.8,1893.7,2.20267]
[1742171298597,1.4085,1893.8,1893.5,3.2078]
[1742171298896,2.94247,1893.7,1893.6,2.20291]
[1742171300494,2.94247,1893.7,1893.6,1.3579]
[1742171301095,0.84506,1893.5,1893.4,1.4067]
[1742171301397,4.05286,1893.5,1893.4,1.4067]
[1742171301807,6.12406,1893.5,1893.4,2.2518]
[1742171303107,6.12406,1893.5,1893.4,1.4067]
[1742171303406,6.12406,1893.5,1893.4,2.2518]
[1742171304402,6.12406,1893.5,1893.4,1.4067]
[1742171305510,6.12406,1893.5,1893.4,2.2518]
[1742171306310,6.12406,1893.5,1893.4,1.4067]
[1742171306813,6.12406,1893.5,1893.4,2.2518]
[1742171307110,6.12406,1893.5,1893.4,1.4067]
[1742171307409,2.91626,1893.5,1893.4,1.4067]
[1742171308107,6.12406,1893.5,1893.4,1.4067]
[1742171308409,6.12406,1893.5,1893.4,2.2518]
[1742171309412,2.91626,1893.5,1893.4,2.2518]
[1742171309912,2.0712,1893.5,1893.4,2.2518]
[1742171310313,2.91626,1893.5,1893.4,2.2518]
[1742171311804,2.0712,1893.5,1893.4,2.2518]
[1742171312111,4.28106,1893.6,1893.5,0.84506]
[1742171312313,5.62816,1893.6,1893.5,2.93996]
[1742171313311,2.19216,1893.6,1893.5,2.93996]
[1742171315213,1.3471,1893.6,1893.5,2.93996]
[1742171315509,2.19211,1893.6,1893.5,2.93996]
[1742171316408,1.3471,1893.6,1893.5,2.93996]
[1742171316609,0.6901,1893.7,1893.6,0.84501]
[1742171316817,2.0178,1893.7,1893.6,2.29961]
[1742171317515,2.86277,1893.7,1893.6,2.29961]
[1742171318019,2.0178,1893.7,1893.6,2.29961]
[1742171318218,1.3277,1893.7,1893.6,2.29961]
[1742171318515,5.87,1893.8,1893.7,0.84497]
[1742171318815,5.87,1893.8,1893.7,2.29957]
[1742171320412,0.84507,1893.5,1893.1,2.11308]
[1742171320614,10.88646,1893.7,1893.3,0.6832]
[1742171320810,0.84508,1893.5,1893.4,0.84509]
[1742171321214,7.3322,1893.7,1893.4,0.84509]
[1742171321514,0.84506,1893.6,1893.5,0.6987]
[1742171321714,2.28686,1893.6,1893.5,0.6987]
[1742171321917,0.84506,1893.5,1893.4,2.28937]
[1742171322111,2.97816,1893.5,1893.4,1.4443]
[1742171322313,0.84515,1893.3,1893.2,0.84518]
[1742171322717,5.4246,1893.4,1893.1,2.1002]
[1742171323017,0.84517,1893.3,1893.2,2.21948]
[1742171324218,0.84532,1893.0,1892.9,0.8453]
[1742171324427,0.84532,1893.0,1892.9,1.5712]
[1742171324614,2.22897,1893.1,1893.0,0.84528]
[1742171325116,4.05299,1893.3,1893.2,0.84519]
[1742171325316,4.76719,1893.3,1893.2,0.84519]
[1742171326119,3.2078,1893.3,1893.2,2.86989]
[1742171326318,4.28112,1893.4,1893.3,0.84515]
[1742171326524,4.72599,1893.5,1893.4,0.8451]
[1742171326719,0.8451,1893.4,1893.3,1.3678]
[1742171326914,7.3169,1893.5,1893.3,1.3678]
[1742171327116,7.3169,1893.5,1893.4,0.8451]
[1742171327630,6.6438,1893.5,1893.4,0.8451]
[1742171327820,3.2078,1893.5,1893.4,0.8451]
[1742171329123,4.7259,1893.7,1893.6,0.84501]
[1742171330230,0.84501,1893.6,1893.5,2.28763]
[1742171330528,4.72591,1893.7,1893.6,0.84501]
[1742171331231,0.84501,1893.6,1893.5,1.56942]
[1742171331930,3.8809,1893.7,1893.3,2.83097]
[1742171331931,0.8451,1893.5,1893.4,0.84507]
[1742171332127,0.8451,1893.5,1893.4,0.84508]
[1742171333228,0.8451,1893.5,1893.2,5.32079]
[1742171333229,1.55984,1893.6,1893.5,0.84506]
[1742171334226,0.84506,1893.5,1893.4,0.84507]
[1742171334624,0.84514,1893.4,1893.3,0.84511]
[1742171336030,4.28108,1893.5,1893.4,0.8451]
[1742171336832,0.84506,1893.5,1893.4,0.8451]
[1742171337034,4.28104,1893.6,1893.5,0.84506]
[1742171337234,3.436,1893.6,1893.5,0.84506]
[1742171337532,0.84505,1893.6,1893.5,0.84503]
[1742171338427,9.42934,1893.7,1893.2,3.8971]
[1742171338634,0.705,1893.5,1893.4,0.84508]
[1742171338834,1.5501,1893.5,1893.4,0.84508]
[1742171343734,0.705,1893.5,1893.4,0.84508]
[1742171344130,2.1091,1893.5,1893.4,0.84508]
[1742171344531,2.95416,1893.5,1893.4,0.84508]
[1742171346432,2.1091,1893.5,1893.4,0.84508]
[1742171346627,8.1619,1893.7,1893.3,3.46962]
[1742171346841,9.551,1893.7,1893.6,0.84501]
[1742171347036,8.1619,1893.7,1893.6,0.84501]
[1742171347640,8.1619,1893.7,1893.6,2.16981]
[1742171349542,8.1619,1893.7,1893.6,1.3248]
[1742171349936,10.27444,1893.7,1893.4,0.84508]
[1742171350136,0.84511,1893.5,1893.4,2.26808]
[1742171352738,7.3169,1893.7,1893.4,2.26808]
[1742171352943,0.84505,1893.6,1893.5,2.22552]
[1742171353342,0.84505,1893.6,1893.5,1.3805]
[1742171354046,0.84505,1893.6,1893.5,2.22556]
[1742171354339,0.84505,1893.6,1893.5,1.3805]
[1742171355232,0.84506,1893.5,1893.4,0.8451]
[1742171355544,1.57246,1893.5,1893.4,1.3805]
[1742171355736,1.57246,1893.5,1893.4,2.2256]
[1742171356141,1.57246,1893.5,1893.4,1.3805]
[1742171356535,1.57246,1893.5,1893.4,2.2256]
[1742171359066,0.84506,1893.5,1893.4,2.2256]
[1742171366672,2.19324,1893.6,1893.5,0.84506]
[1742171366864,2.19324,1893.6,1893.5,2.25796]
[1742171367372,2.19324,1893.6,1893.5,1.4129]
[1742171368171,2.19324,1893.6,1893.5,2.25796]
[1742171369368,3.8809,1893.7,1893.6,0.84501]
[1742171369569,7.3169,1893.7,1893.6,2.29371]
[1742171369775,3.8809,1893.7,1893.6,2.29371]
[1742171370177,3.2078,1893.7,1893.6,2.29371]
[1742171372071,4.05277,1893.7,1893.6,2.29371]
[1742171372579,3.2078,1893.7,1893.6,2.29371]
[1742171374381,4.05277,1893.7,1893.6,2.29371]
[1742171374780,3.2078,1893.7,1893.6,2.29371]
[1742171375280,4.6559,1893.7,1893.6,2.29371]
[1742171376281,3.2078,1893.7,1893.6,2.29371]
[1742171376577,3.435,1893.8,1893.7,0.84493]
[1742171376778,4.27992,1893.8,1893.7,2.22703]
[1742171376979,5.72272,1893.8,1893.7,2.22703]
[1742171377383,3.435,1893.8,1893.7,2.22703]
[1742171377580,2.1661,1893.9,1893.8,0.84492]
[1742171377884,7.48761,1894.1,1894.0,0.84484]
[1742171378079,0.84484,1894.0,1893.9,0.84485]
[1742171378379,1.4428,1894.0,1893.9,0.84485]
[1742171378883,2.28764,1894.0,1893.9,0.84485]
[1742171379382,1.4428,1894.0,1893.9,0.84485]
[1742171379584,3.00315,1894.0,1893.9,0.84488]
[1742171379778,3.65965,1894.0,1893.9,0.84488]
[1742171381187,2.1583,1894.0,1893.9,0.84488]
[1742171381386,4.05262,1894.1,1894.0,0.84484]
[1742171381685,7.48762,1894.1,1894.0,0.84484]
[1742171381876,0.84486,1894.0,1893.9,2.23785]
[1742171382076,2.20906,1894.0,1893.9,2.23785]
[1742171382682,2.20906,1894.0,1893.9,1.393]
[1742171384387,0.84486,1894.0,1893.9,2.23788]
[1742171384690,2.28306,1894.0,1893.9,2.23788]
[1742171386490,0.84486,1894.0,1893.9,2.23788]
[1742171386793,2.20266,1894.0,1893.9,1.393]
[1742171387387,1.3578,1894.0,1893.9,2.23788]
[1742171388090,8.8454,1894.1,1894.0,0.84484]
[1742171388383,8.8454,1894.1,1894.0,2.88184]
[1742171388982,4.5656,1894.1,1894.0,2.88184]
[1742171389182,2.20259,1894.1,1894.0,2.88184]
[1742171389383,1.3578,1894.1,1894.0,2.88184]
[1742171392184,5.41039,1894.1,1894.0,1.3803]
[1742171392586,6.10809,1894.1,1894.0,1.3803]
[1742171393597,0.84488,1893.9,1893.8,1.54209]
[1742171394197,0.84492,1893.8,1893.7,0.00792058]
[1742171394497,2.26982,1893.8,1893.7,0.00792058]
[1742171395001,0.84501,1893.6,1893.5,1.3846]
[1742171395297,4.27901,1893.6,1893.5,2.22966]
[1742171395699,5.61271,1893.6,1893.5,2.22966]
[1742171397593,0.84515,1893.3,1893.2,0.84517]
[1742171398097,0.7252,1893.4,1893.3,0.84515]
[1742171398302,1.5703,1893.4,1893.3,0.84515]
[1742171398906,2.9921,1893.4,1893.3,0.84515]
[1742171400605,0.84515,1893.3,1893.2,1.41592058]
[1742171400908,0.84533,1892.9,1892.7,3.62059132]
[1742171401109,4.27928,1893.0,1892.9,1.408]
[1742171401508,4.97548,1893.0,1892.9,1.408]
[1742171402412,8.18328,1893.0,1892.9,1.408]
[1742171402611,4.1302,1893.0,1892.9,2.25333]